Cogmind - Beta 17 @@@ ROGUE MODE // 2026.07.11 @ 15:22:54 Player: TinyBoulder Result: Destroyed by D-53 Grenadier with Mini Grenade Launcher Performance ------------- Evolutions (0) 0 Regions Visited (2) 400 Robots Destroyed (14) 70 Value Destroyed (307) 307 Prototype IDs (5) 100 Alien Tech Used (0) 0 Bonus (-27) -27 TOTAL SCORE: 850 Bonus ------- Friendly Fire -27 Cogmind --------- Core Integrity 0/250 Matter 133/300 Energy 100/100 System Corruption 8% Temperature Cool (0) Movement Rolling (115) Ox1 Location -10/Mines Parts ------- > --- POWER (1) -------- (None) > --- PROPULSION (2) --- Compact Wheel > --- UTILITY (2) ------ Large Storage Unit > --- WEAPON (2) ------- (None) > --- INVENTORY (15) --- Light Ion Engine Light Nuclear Core Heat Sink Structural Scanner Seismic Detector ECM Suite Hacking Suite EM Pulse Gun Assault Rifle Peak State ------------ > --- POWER ------------ Ion Engine > --- PROPULSION ------- Light Treads Light Treads > --- UTILITY ---------- Improved Heat Sink Large Storage Unit > --- WEAPON ----------- Particle Gun Assault Rifle > --- INVENTORY -------- Light Ion Engine Light Ion Engine Light Nuclear Core Compact Wheel Compact Wheel Compact Wheel Heat Sink Structural Scanner Structural Scanner Seismic Detector ECM Suite Hacking Suite EM Pulse Gun Slug Cannon [Rating: 12] Favorites ----------- Power Light Ion Engine Engine Light Ion Engine Propulsion Light Treads Treads Light Treads Wheel Compact Wheel Utility Improved Heat Sink Device Improved Heat Sink Storage Small Storage Unit Weapon Assault Rifle Energy Gun Particle Gun Ballistic Gun Assault Rifle Ballistic Cannon Slug Cannon Launcher Grenade Launcher Build | -11 -10 -10 ------- Run | Yrd Mat Min Slots Evolved . | . . . Power . | . . . Propulsion . | . . . Utility . | . . . Weapon . | . . . Parts Attached 18 | 6 5 7 Power 3 | 1 1 1 Engine 3 | 1 1 1 Core . | . . . Reactor . | . . . Propulsion 5 | 2 . 3 Treads 2 | 2 . . Leg . | . . . Wheel 3 | . . 3 Hover . | . . . Flight . | . . . Utility 3 | 1 2 . Device 1 | . 1 . Storage 2 | 1 1 . Processor . | . . . Hackware . | . . . Protection . | . . . Artifact . | . . . Weapon 7 | 2 2 3 Energy Gun 3 | 1 2 . Energy Cannon . | . . . Ballistic Gun 1 | 1 . . Ballistic Cannon 1 | . . 1 Launcher 2 | . . 2 Special Weapon . | . . . Impact Weapon . | . . . Slashing Weapon . | . . . Piercing Weapon . | . . . Special Melee Weapon . | . . . Unidentified Prototypes . | . . . Parts Lost 12 | . 1 11 Power 2 | . . 2 Propulsion 4 | . . 4 Utility 1 | . . 1 Weapon 5 | . 1 4 Highest Loss Streak 11 | . 1 11 To Critical Strikes . | . . . Average Backups 8 | 2 7 14 Power 2 | . 1 2 Propulsion 2 | 1 2 2 Utility 2 | . 2 5 Weapon 1 | . . 2 Tool/Special . | . . . Unused Backups 7 | . . 7 Power 1 | . . 1 Propulsion . | . . . Utility 6 | . . 6 Weapon . | . . . Tool/Special . | . . . Average Slot Usage (%) 93 | . 93 95 Engine 13 | . 14 12 Treads 27 | . 28 25 Device 9 | . 7 13 Storage 14 | . 14 14 Energy Gun 13 | . 13 12 Ballistic Gun 12 | . 14 8 Peak Build Rating 12 | 6 11 12 Average Rating 9 | 3 8 11 On Entrance 5 | . 6 11 Avg Prop Armor Cover (%) . | . . . Naked Turns . | . . . Heaviest Build 32 | 11 31 32 Greatest Support 40 | 40 40 40 Greatest Overweight (x) 1 | . . 1 Average Overweight (x) . | . . . Largest Inventory Capacity 15 | 8 15 15 Average Capacity 11 | 7 10 15 Most Carried 15 | 4 13 15 Average Carried 8 | 2 7 13 Final Capacity 15 | 8 15 15 Final Carried 13 | 4 13 9 Class Distribution -------------------- 100% | Mutant Dominant Class ---------------- Mutant | -10/Materials Mutant | -10/Mines Resources | -11 -10 -10 ----------- Run | Yrd Mat Min Matter Collected 435 | 208 197 30 Remotely . | . . . Salvage Created 402 | . 299 103 Parts 35 | . 31 4 Haulers Intercepted . | . . . Recyclers Shooed . | . . . Parts Field Recycled . | . . . Retrieved Matter . | . . . Parts Self-Destructed . | . . . Prevented . | . . . Parts Restored . | . . . Kills | -11 -10 -10 ------- Run | Yrd Mat Min Combat Hostiles Destroyed 22 | . 10 12 Guns 12 | . 10 2 AOE 10 | . . 10 Classes Destroyed 5 | . 3 2 Worker 1 | . . 1 Operator 1 | . 1 . Swarmer 6 | . 6 . Grunt 6 | . 4 2 Assembled 10 | . . 10 Best Kill Streak 10 | . 5 10 Combat Bots Only 10 | . 5 10 Max Kills in Single Turn 2 | . 1 2 Gunslinging . | . . . Exploded 2 | . . 2 Melee . | . . . Uniques/NPCs Destroyed . | . . . Combat | -11 -10 -10 -------- Run | Yrd Mat Min Hostile Shots Fired 112 | . 39 73 Missed 30 | . 12 18 Hits 82 | . 27 55 Melee 7 | . . 7 Projectile 75 | . 27 48 AOE 3 | . . 3 Damage Taken 1268 | . 298 970 Core 253 | . 17 236 Absorbed by Shields . | . . . Core Remaining (%) 100 | 100 . . Volleys Fired 46 | . 28 18 Largest 2 | . 2 2 Hottest 85 | . 85 85 Shots Fired 77 | . 54 23 Gun 62 | . 54 8 Cannon 2 | . . 2 Launcher 13 | . . 13 Special . | . . . Kinetic 34 | . 28 6 Thermal 28 | . 24 4 Explosive 13 | . . 13 Electromagnetic 2 | . 2 . Robot Hit Streak 6 | . 6 6 Robot Miss Streak 4 | . 4 3 Penetration Max . | . . . Secondary Targets 1 | . . 1 Max Gunslinging Chain 1 | . . 1 Shots Hit Robots 41 | . 31 10 Core Hits 48 | . 16 32 Critical Kills . | . . . Critical Parts Destroyed . | . . . Critical Strikes 2 | . 1 1 Burn 2 | . 1 1 Melee Attacks . | . . . Impact . | . . . Slashing . | . . . Piercing . | . . . Sneak Attacks . | . . . Combat Hostiles . | . . . Follow-up Attacks . | . . . Damage Inflicted 1368 | . 381 987 Guns 466 | . 381 85 Cannons 20 | . . 20 Explosions 882 | . . 882 Melee . | . . . Ramming . | . . . Kinetic 263 | . 203 60 Thermal 196 | . 151 45 Explosive 882 | . . 882 Electromagnetic 27 | . 27 . Impact . | . . . Slashing . | . . . Piercing . | . . . Highest Corruption 8 | . 2 8 Average Corruption 2 | . 2 2 Corruption Purged . | . . . Corruption Blocked . | . . . Effects 8 | . 6 2 Message Errors 1 | . . 1 Matter Fused 3 | . 3 . Heat Flow Errors 1 | . 1 . Energy Discharges 2 | . 2 . Misfires 1 | . . 1 Overload Shots . | . . . Overflow Damage 54 | . . 54 Projectiles 18 | . . 18 Explosions 36 | . . 36 Melee . | . . . Knockbacks 1 | . . 1 Impact . | . . . Kinetic 1 | . . 1 Secondary . | . . . Self-Inflicted Damage 59 | . . 59 Shots 4 | . . 4 Rammed . | . . . Targets Rammed . | . . . Kicked . | . . . Crushed . | . . . Highest Temperature 89 | . 89 3 Average Temperature 19 | . 24 2 Received Heat Transfer 211 | . 69 142 Siege Activations . | . . . Martial Activations . | . . . Shielding Activations . | . . . Robots Disrupted . | . . . Combat Hostiles . | . . . Robots Corrupted . | . . . Combat Hostiles . | . . . Parts Fried . | . . . Impact Corruptions . | . . . Robots Melted . | . . . Combat Hostiles . | . . . Parts Melted 1 | . 1 . Heat Transferred 608 | . 423 185 Parts Sabotaged . | . . . Parts Stolen . | . . . Parts Stripped . | . . . Power Chain Reactions . | . . . Alert | -11 -10 -10 ------- Run | Yrd Mat Min Maximum Alert Level . | . . . Low Security (%) 100 | 100 100 100 Level 1 . | . . . Level 2 . | . . . Level 3 . | . . . Level 4 . | . . . Level 5 . | . . . High Security . | . . . Max Security . | . . . Peak Influence 110 | . 110 50 Initial . | . . . Average 27 | . 36 7 Influence Increases 430 | . 338 92 Destroy 0b10 Robot/C 240 | . 200 40 Destroy 0b10 Robot/NC 10 | . 5 5 Destroy Leader 60 | . 50 10 Successful Hack 5 | . 5 . Select Force Hacks 60 | . 60 . Destroy Structure 40 | . 3 37 Lose Combat Pursuer 15 | . 15 . Influence Decreases 430 | . 338 92 Time Decay 403 | . 328 75 Lost Part 27 | . 10 17 Squads Dispatched 3 | . 3 . Investigation 2 | . 2 . Extermination . | . . . Reinforcement 1 | . 1 . Assault . | . . . Garrison . | . . . Intercept . | . . . Searches Triggered . | . . . Construction Impeded . | . . . Haulers Reinforced . | . . . Active Scanning Responses . | . . . Cargo Convoy Interrupts . | . . . Stealth | -11 -10 -10 --------- Run | Yrd Mat Min Distress Signals . | . . . Communications Jammed . | . . . Distress Signals . | . . . Times Spotted 41 | . 16 25 Peak Tracking Total 13 | . 6 13 Tactical Retreats 2 | . 1 1 Traps | -11 -10 -10 ------- Run | Yrd Mat Min Traps Triggered 2 | . 2 . Indirectly . | . . . Trap Hack Attempts . | . . . Triggered . | . . . Disarmed . | . . . Reprogrammed . | . . . Reused . | . . . Traps Extracted . | . . . Installed . | . . . Triggered . | . . . Machines | -11 -10 -10 ---------- Run | Yrd Mat Min Machines Disabled . | . . . Max in Single Turn . | . . . Machines Repaired . | . . . Machines Dismantled . | . . . Machines Sabotaged . | . . . Overloaded Fab Kills . | . . . Hacking | -11 -10 -10 --------- Run | Yrd Mat Min Machines Accessed 9 | . 9 . Terminals 7 | . 7 . Fabricators . | . . . Repair Stations . | . . . Recycling Units 2 | . 2 . Scanalyzers . | . . . Garrison Access . | . . . Total Hacks 25 | . 25 . Successful 13 | . 13 . Failed 12 | . 12 . Catastrophic 1 | . 1 . Database Lockouts . | . . . Manual 12 | . 12 . Terminals 21 | . 21 . Fabricators . | . . . Repair Stations . | . . . Recycling Units 4 | . 4 . Scanalyzers . | . . . Garrison Access . | . . . Terminal Hacks 7 | . 7 . Prototype ID Bank 5 | . 5 . Locate Traps 2 | . 2 . Fabricator Hacks . | . . . Repair Station Hacks . | . . . Recycling Unit Hacks 2 | . 2 . Report Inventory 2 | . 2 . Scanalyzer . | . . . Garrison Access Hacks . | . . . Unauthorized Hacks 4 | . 4 . Terminals 2 | . 2 . Botnet 1 | . 1 . Operators 1 | . 1 . Fabricators . | . . . Repair Stations . | . . . Recycling Units 2 | . 2 . Tunnel 2 | . 2 . Scanalyzers . | . . . Garrison Access . | . . . Data Cores Recovered . | . . . Used . | . . . Hacking Detections 5 | . 5 . Full Trace Events . | . . . Feedback Events . | . . . Feedback Blocked . | . . . Robot Schematics Acquired . | . . . Robots Built . | . . . Authchips . | . . . Time . | . . . Total Robot Build Rating . | . . . Part Schematics Acquired . | . . . Parts Built . | . . . Authchips . | . . . Time . | . . . Total Part Build Rating . | . . . Part Studies Acquired . | . . . Parts Repaired . | . . . Time . | . . . Parts Recycled . | . . . Recycled Matter . | . . . Retrieved Matter . | . . . Retrieved Components . | . . . Parts Scanalyzed . | . . . Part Schematics Acquired . | . . . Parts Damaged . | . . . Bothacking | -11 -10 -10 ------------ Run | Yrd Mat Min Used RIF Installer . | . . . Robots Hacked . | . . . Non-combat . | . . . Combat . | . . . Robot Hacks Applied . | . . . Relay Couplers Released . | . . . Fabnet Peak Effective % . | . . . Robots Rewired . | . . . Allies Hacked . | . . . Hacks Repelled . | . . . Allies | -11 -10 -10 -------- Run | Yrd Mat Min Total Allies . | . . . Largest Group . | . . . Highest-Rated Group . | . . . Highest-Rated Ally . | . . . Total Orders . | . . . Ally Attacks . | . . . Total Damage . | . . . Kills . | . . . Allies Corrupted . | . . . Allies Melted . | . . . Intel | -11 -10 -10 ------- Run | Yrd Mat Min Active Infowar (turns) . | . . . Robot Analysis Total . | . . . Derelict Logs Recovered 1 | . . 1 Drone Launches . | . . . Drone Recoveries . | . . . Exploration | -11 -10 -10 ------------- Run | Yrd Mat Min Turns Passed 1637 | 108 1153 376 Spaces Moved 896 | 66 623 207 Core 9 | 9 . . Treads 863 | 57 623 183 Legs . | . . . Wheels 24 | . . 24 Hover . | . . . Flight . | . . . Fastest Speed 50 | 50 160 100 Average Speed 157 | 145 160 154 Slowest Speed 160 | 160 160 160 Overloaded Moves . | . . . Propulsion Burnouts . | . . . Robots Hopped . | . . . Potential Cave-ins . | . . . Cave-ins Triggered . | . . . Exploration Rate (%) 51 | 5 96 52 Regions Visited 2 Branch Regions 1 Pre-discovered Areas 2 | . 2 . Known Exits Taken . | . . . Unknown Exits Taken 2 | 1 1 . Scrap Searched 1 | . . 1 Spaces Dug . | . . . Terrain Destroyed 57 | . . 57 Melee . | . . . Projectile 1 | . . 1 AOE 56 | . . 56 Terrain Rammed . | . . . Walls Destroyed . | . . . Machines Disabled . | . . . Actions | -11 -10 -10 --------- Run | Yrd Mat Min Total 1041 | 75 725 241 Wait 63 | . 60 3 Move 894 | 65 622 207 Hop . | . . . Pick Up 15 | 4 8 3 Fast Attach 8 | 6 2 . Attach 7 | . 1 6 Detach 1 | . 1 . Swap 5 | . 2 3 Drop 2 | . 1 1 Fire 46 | . 28 18 Melee . | . . . Ram . | . . . Kick . | . . . Crush . | . . . Escape Stasis . | . . . Rewire . | . . . Trap . | . . . Miscellaneous . | . . . Route ------- -11/Scrapyard -10/Materials (discovered 5 exits: [*Mat x3] / [*Min] / [*Sub]) -10/Mines History --------- Turn | Location | Event 15 | -11/Scrapyard | Discovered new exit (range 16) 109 | -11/Scrapyard | Entered Materials 110 | -10/Materials | Met a group of wandering Federalists 232 | -10/Materials | Discovered new exit (range 6) 300 | -10/Materials | Build established: Mutant 319 | -10/Materials | Discovered new exit (range 12) 535 | -10/Materials | Discovered new exit (range 5) 862 | -10/Materials | Discovered new exit (range 15) 1090 | -10/Materials | Discovered new exit (range 16) 1262 | -10/Materials | Entered Mines 1311 | -10/Mines | A weapon hastily lodged in a ceiling crevice suddenly fell to the ground 1390 | -10/Mines | YI-UF0 nonchalantly dropped a Grenade Launcher on the ground 1460 | -10/Mines | Learned Materials terminal intel 1571 | -10/Mines | Assembled infested the area 1604 | -10/Mines | Core integrity fell below 50% 1616 | -10/Mines | Core integrity fell below 20% 1618 | -10/Mines | Destroyed 10 combat bots 1638 | -10/Mines | Destroyed by D-53 Grenadier with Mini Grenade Launcher Last Messages --------------- 01605_ U-05 Engineer lays Concrete. 01605_ Ion Engine destroyed. 01606_ U-05 Engineer lays Concrete. 01607_ Knocked back. 01607_ U-05 Engineer lays Concrete. 01608_ The unstable cave ceiling collapses. 01608_ as-51952 sneak attacks. 01609_ Com. Wheel destroyed. 01611_ Knocked back. 01615_ Lgt. Ion Engine destroyed. 01620_ Imp. Heat Sink destroyed. 01620_ Com. Wheel destroyed. 01620_ System corrupted by crushing effect (+5). 01620_ System corrupted by crushing effect (+1). 01622_ as-60789 destroyed. 01622_ as-19834 destroyed. 01622_ as-11579 destroyed. 01622_ as-25494 destroyed. 01634_ as-51952 destroyed. 01638_ Slug Cannon destroyed. Map ----- +----------------------------------------------------+ | | | | | | | | | | | | | | | | | | | | | ?????????????????????????????????????????????????? | | ?????????????????????????????????????????????????? | | ?????????????????????????????????????????????????? | | ?????????????????????????????????????????????????? | | ?????????????????????????????????????????????????? | | ?????????????????????????????????????????????????? | | ?????????????????????????????????????????????????? | | ??????????????????????#####??????????????????????? | | ?????????????????????## $ ##?????????????????????? | | ????????????????????## #####?????????????????? | | ????????????????????# ##????????????????? | | ????????????????????# #???????????###### | | ????????????????????# ###????????## | | ????????????????????# #????????# # | | ?????????????????????# ##???????# # | | ??????????????????????###@ #???????# | | ????????????????????????# # d #??????# | | ????????????????????????##### #?#####?? " == | | ??????????????????????????????## #### ## # | | ??????????????????????????????## ## | | ??????????????????????????????# % # | | ??????????????????????????????# % # | | ??????????????????????????????## # | | ???????????????????????????????####### | | ????????????????????????????????????## | | ??????????????????? #???#????????## ## | | ??????????????????? #?## ??????## ##### | | ?????????????????? ## ??????# ##???# | | ?????????????????? ?????# #### ###???## | | ??????#??????????? ????## #???# #?????# | | ?????? ?????????? #??## ##### #?????# | | ?????? ?????????? ### ####### | | ?????? ?????????# ###### | | ?????? ?????????# ###????######### | | ????## ??????????# [ !##?????????# | | ???? ???????????#### % ### ! #??????????# !! | | ???? ?????????????# ????##%%#??????????# ! ! | | ????# #?????????????#=???????#[ #??????????# ! | | ????# #??????????????????????# #?????????## ! ! | | ????# #??????????????????????# #???????### | +----------------------------------------------------+ Best States ------------- Heat Dissipation 39 Energy Generation 10 Energy Capacity 250 Matter Stores 300 Matter Capacity 300 Sight Range 16 Terrain Scan Density 10 Evasion (%) 40 Recoil Reduction 2 Item Schematics ----------------- None Robot Schematics ------------------ None Fabricated ------------ Nothing Repaired ---------- Nothing Studied --------- None Alien Tech Used ----------------- None Achievements -------------- None Challenges ------------ None Game ------ Seed BiocellWeldingExtrapolator Manual? 0 Play Time 00:13:39 Cumulative 130.0 hours Start 2026.07.11 @ 15:08:01 End 2026.07.11 @ 15:22:54 Sessions 1 Manual Loads 0 Difficulty Rogue Special Mode None Game No. 119 Rogue 118 Adventurer 0 Explorer 1 Win Type - Total 7 Types 4/0/1/1/0/0/0/1/0/0 Lore% 73 Gallery% 63 Achievement% 42 Wizard Run 0 Options --------- Layout 1 ASCII 0 Keyboard 0 Movement Arrows Keybinds 0 Fullscreen 1 Font 24/Smallcaps Map View 50x35 Zoom Use 0% Tactical HUD 1 Map Filters NONE Filters NONE Steam 1 RUN: 69111346-48d1-4dc6-9a70-03c5a063c4eb